[Event "WJCC U20 Girls 2019"]
[Site "New Delhi"]
[Date "2019.10.21"]
[Round "7.14"]
[White "Song, Yuxin"]
[Black "Harshita Guddanti"]
[Result "1/2-1/2"]
[ECO "B75"]
[WhiteElo "2292"]
[BlackElo "2123"]
[Annotator "NA"]
[PlyCount "137"]
[EventDate "2019.10.15"]
[EventType "swiss"]
[EventCountry "IND"]
[SourceTitle "playchess.com"]
[Source "ChessBase"]
[SourceQuality "1"]
[TimeControl "40/5400+30:1800+30"]

1. e4 {[%emt 0:00:00]} c5 {[%emt 0:00:22]} 2. Nf3 {[%emt 0:00:00]} d6 {[%emt 0:00:05]} 3. d4 {[%emt 0:00:00]} cxd4 {[%emt 0:00:15]} 4. Nxd4 {[%emt 0:00:00]} Nf6 {[%emt 0:00:07]} 5. Nc3 {[%emt 0:00:00]} g6 {[%emt 0:00:30]} 6. Be3 {[%emt 0:00:00]} Bg7 {[%emt 0:00:14]} 7. f3 {[%emt 0:00:11]} Nc6 {[%emt 0:03:26]} 8. Qd2 {[%emt 0:00:07]} h5 {[%emt 0:05:41]} 9. O-O-O {[%emt 0:15:13]} Bd7 {[%emt 0:01:08]} 10. Nxc6 {[%emt 0:11:25]} bxc6 {[%emt 0:02:11]} 11. Bc4 {[%emt 0:01:54]} Qa5 {[%emt 0:07:58]} 12. Kb1 {[%emt 0:07:59]} Qb4 {[%emt 0:06:59]} 13. Bb3 {[%emt 0:04:18]} a5 {[%emt 0:01:10]} 14. e5 {[%emt 0:06:28]} dxe5 {[%emt 0:05:40]} 15. Qf2 {[%emt 0:01:06]} Bf5 $11 {[%emt 0:09:19]} 16. Na4 {[%emt 0:11:02]} Nd5 {[%emt 0:14:55]} 17. Bc5 {[%emt 0:10:53]} Qb7 {[%emt 0:02:07]} 18. Ka1 {[%emt 0:06:18]} Bf6 {[%emt 0:05:25]} 19. Qd2 {[%emt 0:05:43]} Kf8 {[%emt 0:06:18]} 20. Bxd5 {[%emt 0:05:45]} cxd5 {[%emt 0:01:06]} 21. Qxd5 {[%emt 0:03:26]} Qxd5 {[%emt 0:02:07]} 22. Rxd5 {[%emt 0:00:02]} Kg7 {[%emt 0:01:36]} 23. c3 {[%emt 0:01:36]} e4 {[%emt 0:02:20]} 24. Nb6 {[%emt 0:01:38]} Rad8 {[%emt 0:02:13]} 25. Rhd1 {[%emt 0:01:53]} e6 {[%emt 0:02:24]} 26. Rxd8 {[%emt 0:00:26]} Rxd8 {[%emt 0:00:08]} 27. Rxd8 {[%emt 0:01:45]} Bxd8 {[%emt 0:00:04]} 28. Bd4+ {[%emt 0:00:12]} f6 {[%emt 0:04:38]} 29. f4 {[%emt 0:01:06]} Bxb6 {[%emt 0:05:30]} 30. Bxb6 {[%emt 0:00:01]} a4 {[%emt 0:00:09]} 31. Be3 {[%emt 0:01:36]} Kf7 {[%emt 0:01:58]} 32. b4 {[%emt 0:00:49]} axb3 {[%emt 0:00:29]} 33. axb3 {[%emt 0:00:01]} Ke7 {[%emt 0:00:47]} 34. c4 {[%emt 0:00:46]} Kd6 {[%emt 0:01:34]} 35. Bd4 {[%emt 0:00:55]} e3 {[%emt 0:02:29]} 36. Bxf6 {[%emt 0:02:38]} e2 {[%emt 0:00:08]} 37. Bc3 {[%emt 0:00:01]} Kc5 {[%emt 0:00:16]} 38. Kb2 {[%emt 0:00:14]} h4 {[%emt 0:01:10]} 39. Be1 {[%emt 0:01:29]} Kd4 {[%emt 0:00:54]} 40. Bf2+ {[%emt 0:00:31]} Kd3 {[%emt 0:00:21]} 41. Kc1 {[%emt 0:30:25]} h3 {[%emt 0:32:16]} 42. gxh3 {[%emt 0:00:00]} Kc3 {[%emt 0:00:00]} 43. c5 {[%emt 0:00:00]} Be4 {[%emt 0:00:00]} 44. Be1+ {[%emt 0:00:00]} Kxb3 {[%emt 0:00:00]} 45. Kd2 {[%emt 0:00:00]} Kc4 {[%emt 0:00:00]} 46. Bf2 {[%emt 0:00:00]} Bf3 {[%emt 0:00:00]} 47. Ke3 {[%emt 0:00:00]} e1=Q+ {[%emt 0:00:00]} 48. Bxe1 {[%emt 0:00:00]} Bc6 {[%emt 0:00:00]} 49. Kf2 {[%emt 0:00:00]} Kxc5 {[%emt 0:00:00]} 50. Kg3 {[%emt 0:00:00]} Kd4 {[%emt 0:00:00]} 51. Kg4 {[%emt 0:00:00]} e5 {[%emt 0:00:00]} 52. Bf2+ {[%emt 0:00:00]} Ke4 {[%emt 0:00:00]} 53. fxe5 {[%emt 0:00:00]} Kxe5 {[%emt 0:00:00]} 54. Kg5 {[%emt 0:00:00]} Be8 {[%emt 0:00:00]} 55. Bg3+ {[%emt 0:00:00]} Ke6 {[%emt 0:00:00]} 56. Bf4 {[%emt 0:00:00]} Bf7 {[%emt 0:00:00]} 57. Bc1 {[%emt 0:00:00]} Be8 {[%emt 0:00:00]} 58. Bb2 {[%emt 0:00:00]} Bf7 {[%emt 0:00:00]} 59. h4 {[%emt 0:00:00]} Be8 {[%emt 0:00:00]} 60. Kh6 {[%emt 0:00:00]} Kf5 {[%emt 0:00:00]} 61. Kg7 {[%emt 0:00:00]} Kg4 {[%emt 0:00:00]} 62. Kf8 {[%emt 0:00:00]} Bb5 {[%emt 0:00:00]} 63. Kf7 {[%emt 0:00:00]} Bd3 {[%emt 0:00:00]} 64. Bf6 {[%emt 0:00:00]} Kh3 {[%emt 0:00:00]} 65. Bg5 {[%emt 0:00:00]} Kxh2 {[%emt 0:00:00]} 66. Kg7 {[%emt 0:00:00]} Kg3 {[%emt 0:00:00]} 67. Kh6 {[%emt 0:00:00]} Bc2 {[%emt 0:00:00]} 68. h5 {[%emt 0:00:00]} gxh5 {[%emt 0:00:00]} 69. Kxh5 {[%emt 0:00:00]} 1/2-1/2

[Event "WJCC U20 Girls 2019"]
[Site "New Delhi"]
[Date "2019.10.21"]
[Round "7.16"]
[White "Protopopova, Anastasiya"]
[Black "Mungunzul, Bat-Erdene"]
[Result "1-0"]
[ECO "D11"]
[WhiteElo "2263"]
[BlackElo "1912"]
[Annotator "NA"]
[PlyCount "69"]
[EventDate "2019.10.15"]
[EventType "swiss"]
[EventCountry "IND"]
[SourceTitle "playchess.com"]
[Source "ChessBase"]
[SourceQuality "1"]
[TimeControl "40/5400+30:1800+30"]

1. d4 d5 2. c4 c6 3. Nf3 Nf6 4. g3 Bf5 5. Nc3 e6 6. Nh4 {D11: Slav Defence: 3 Nf3 sidelines and 3...Nf6 4 e3 Bg4} Be4 (6... Bg4 7. h3 Bh5 8. Qb3 Qb6 9. c5 Qc7 10. Bf4 Qc8 11. g4 Bg6 12. Nxg6 hxg6 {½-½ (45) Inarkiev,E (2682)-Karjakin,S (2750) Nazran 2019}) 7. f3 Bg6 8. Nxg6 hxg6 9. Qb3 Qc8 10. Be3 Nbd7 $146 ({Predecessor:} 10... Bd6 11. Bf2 Nbd7 12. O-O-O O-O {1-0 (53) Kruzhilin,A (2059)-Karpenko,A (2165) Saratov 2014}) 11. Bf2 dxc4 12. Qxc4 Bd6 13. e4 e5 14. f4 Nb6 15. Qe2 exd4 16. Bxd4 Be7 17. O-O-O Qe6 {[#]} 18. h4 $1 Bb4 {[#]} 19. Bh3 $16 Qe7 20. Rhe1 O-O 21. a3 Bxc3 22. Bxc3 Rfd8 23. e5 Rxd1+ 24. Rxd1 Nfd5 25. Be1 Qc5+ 26. Kb1 Re8 27. h5 gxh5 28. Qxh5 Qb5 29. Bf5 Ne3 30. Qh7+ Kf8 31. Bb4+ c5 32. Bd7 Nxd7 33. Rxd7 Qf1+ 34. Be1 Qxe1+ 35. Ka2 1-0

[Event "WJCC U20 Girls 2019"]
[Site "New Delhi"]
[Date "2019.10.21"]
[Round "7.17"]
[White "Toshali, V."]
[Black "Priyanka Nutakki"]
[Result "0-1"]
[ECO "A48"]
[WhiteElo "1868"]
[BlackElo "2248"]
[Annotator "NA"]
[PlyCount "130"]
[EventDate "2019.10.15"]
[EventType "swiss"]
[EventCountry "IND"]
[SourceTitle "playchess.com"]
[Source "ChessBase"]
[SourceQuality "1"]
[TimeControl "40/5400+30:1800+30"]

1. d4 Nf6 2. Nf3 g6 3. Nc3 d5 4. Bf4 Bg7 5. e3 ({Predecessor:} 5. Nb5 Na6 6. e3 c6 7. Nc3 Nc7 8. Bd3 Ne6 9. Be5 O-O 10. O-O c5 11. dxc5 Nxc5 {0-1 (59) Sharapan,D-Shakhzadov,S Stavropol 2019}) 5... O-O 6. Be2 c5 7. dxc5 Nbd7 8. O-O Nxc5 9. Be5 {D00: 1 d4 d5: Unusual lines} e6 $146 (9... b6 10. a4 Bb7 11. Bd4 Ne6 12. Be5 Nc5 13. Ra3 Ncd7 14. Bd4 Qb8 15. Na2 e5 16. Bc3 a6 {0-1 (42) Krishna,C (2446)-Bai,J (2591) Qingdao 2019}) 10. Nb5 Ne8 11. Bxg7 Nxg7 12. c4 a6 13. Nc3 dxc4 14. Bxc4 b5 15. b4 Nd7 16. Bd3 Bb7 17. Be4 Bxe4 18. Nxe4 f5 19. Nc5 Nb6 (19... Nxc5 $14 20. bxc5 Ne8) 20. e4 $14 Qe7 21. Re1 a5 22. exf5 Rxf5 23. Nd4 Rd5 24. Qg4 axb4 25. Ncxe6 Qd7 26. h3 Re8 27. Nxg7 Rxe1+ 28. Rxe1 Qxg4 29. hxg4 Rxd4 30. Ne8 Rd2 31. g5 Rxa2 32. Nd6 Nd5 33. Rb1 Ra5 34. f4 Kf8 35. f5 gxf5 36. Nxf5 Kf7 37. Nd4 Kg6 38. Nf3 Ra2 39. Kh2 Kf5 40. Nd4+ Kxg5 41. Nxb5 Rd2 42. Rb3 Kf4 43. Nd6 Rc2 44. Rh3 Ke5 45. Nb5 Rxg2+ 46. Kxg2 Nf4+ 47. Kg3 Nxh3 48. Kxh3 Kd5 49. Kg4 Kc5 50. Nc7 b3 51. Ne6+ Kc4 52. Ng5 b2 53. Nxh7 b1=Q 54. Ng5 Kd5 55. Kf4 Qc1+ 56. Kf5 Qf1+ 57. Kg4 Qf6 58. Nf3 Ke4 59. Ng5+ Ke3 60. Nh3 Qg7+ 61. Ng5 Qg6 62. Kh4 Kf4 63. Nh3+ Kf5 64. Nf2 Qg2 65. Kh5 Qg5# 0-1

[Event "WJCC U20 Girls 2019"]
[Site "New Delhi"]
[Date "2019.10.21"]
[Round "7.18"]
[White "Nomindalai Tumurbaatar"]
[Black "Kiolbasa, Oliwia"]
[Result "1/2-1/2"]
[ECO "A45"]
[WhiteElo "2061"]
[BlackElo "2223"]
[Annotator "NA"]
[PlyCount "119"]
[EventDate "2019.10.15"]
[EventType "swiss"]
[EventCountry "IND"]
[SourceTitle "playchess.com"]
[Source "ChessBase"]
[SourceQuality "1"]
[TimeControl "40/5400+30:1800+30"]

1. d4 {[%emt 0:00:00]} Nf6 {[%emt 0:00:00]} 2. Bf4 {[%emt 0:00:00]} d6 {[%emt 0:00:00]} 3. e3 {[%emt 0:00:08]} Nbd7 {[%emt 0:00:03]} 4. Nd2 {[%emt 0:01:34]} e5 {[%emt 0:03:43]} 5. dxe5 {[%emt 0:04:32]} Nxe5 {[%emt 0:01:30]} 6. Bxe5 {[%emt 0:05:22]} dxe5 {[%emt 0:00:10]} 7. Nc4 {[%emt 0:00:44]} Qe7 {[%emt 0:03:54]} 8. Nf3 {[%emt 0:07:12]} e4 {[%emt 0:01:01]} 9. Nd4 {[%emt 0:00:43]} g6 {[%emt 0:03:30]} 10. Be2 {[%emt 0:04:31]} Bg7 {[%emt 0:00:12]} 11. O-O {[%emt 0:00:44]} O-O {[%emt 0:00:11]} 12. a4 {[%emt 0:00:59]} Rd8 {[%emt 0:05:26]} 13. Qc1 {[%emt 0:04:48]} c5 {[%emt 0:06:17]} 14. Nb5 {[%emt 0:04:06]} Nd5 {[%emt 0:00:12]} 15. Rd1 {[%emt 0:01:13]} Be6 {[%emt 0:00:50]} 16. a5 {[%emt 0:03:21]} a6 {[%emt 0:08:36]} 17. Nba3 {[%emt 0:09:32]} Rab8 $15 {[%emt 0:00:20]} 18. c3 {[%emt 0:00:36]} f5 {[%emt 0:07:58]} 19. Qc2 {[%emt 0:02:08]} Bf7 {[%emt 0:00:18]} 20. Bf1 {[%emt 0:02:56]} Qc7 {[%emt 0:08:27]} 21. Rd2 {[%emt 0:03:22]} Ne7 {[%emt 0:03:01]} 22. Rad1 {[%emt 0:16:08]} Nc6 {[%emt 0:01:13]} 23. Qa4 {[%emt 0:09:14]} Rxd2 {[%emt 0:00:31]} 24. Rxd2 {[%emt 0:00:05]} Rd8 {[%emt 0:00:11]} 25. Rxd8+ {[%emt 0:02:07]} Qxd8 {[%emt 0:00:05]} 26. Nb6 {[%emt 0:02:27]} Bf6 {[%emt 0:10:25]} 27. Nac4 {[%emt 0:01:46]} Kg7 {[%emt 0:00:23]} 28. Be2 {[%emt 0:02:51]} Qc7 {[%emt 0:02:32]} 29. Qa3 {[%emt 0:03:50]} Be7 {[%emt 0:00:18]} 30. g3 {[%emt 0:00:23]} h5 {[%emt 0:01:48]} 31. Qa1 {[%emt 0:00:40]} Bd8 {[%emt 0:03:30]} 32. Qd1 {[%emt 0:01:19]} Nxa5 {[%emt 0:06:20]} 33. Nxa5 {[%emt 0:06:17]} Qxb6 {[%emt 0:00:02]} 34. Nc4 {[%emt 0:00:08]} Qc7 {[%emt 0:07:00]} 35. Nd6 {[%emt 0:00:11]} Be7 {[%emt 0:02:38]} 36. Nxf7 {[%emt 0:00:11]} Kxf7 {[%emt 0:00:04]} 37. Qd5+ {[%emt 0:00:07]} Kg7 {[%emt 0:00:19]} 38. Bc4 {[%emt 0:00:04]} Bf6 {[%emt 0:01:07]} 39. Qg8+ {[%emt 0:01:36]} Kh6 {[%emt 0:00:02]} 40. Bf7 {[%emt 0:00:09]} Bg7 {[%emt 0:00:19]} 41. Qe8 {[%emt 0:30:45]} Qd6 {[%emt 0:31:03]} 42. Kg2 {[%emt 0:00:50]} h4 {[%emt 0:11:06]} 43. Qe6 {[%emt 0:00:00]} Qxe6 {[%emt 0:00:00]} 44. Bxe6 {[%emt 0:00:00]} hxg3 {[%emt 0:00:00]} 45. hxg3 {[%emt 0:00:00]} b5 {[%emt 0:00:00]} 46. Bc8 {[%emt 0:00:00]} a5 {[%emt 0:00:00]} 47. Bd7 {[%emt 0:00:00]} b4 {[%emt 0:00:00]} 48. cxb4 {[%emt 0:00:00]} cxb4 {[%emt 0:00:00]} 49. b3 {[%emt 0:00:00]} Bc3 {[%emt 0:00:00]} 50. Bb5 {[%emt 0:00:00]} Kg5 {[%emt 0:00:00]} 51. Be8 {[%emt 0:00:00]} Kf6 {[%emt 0:00:00]} 52. Kf1 {[%emt 0:00:00]} g5 {[%emt 0:00:00]} 53. Ke2 {[%emt 0:00:00]} Ke5 {[%emt 0:00:00]} 54. Bb5 {[%emt 0:00:00]} f4 {[%emt 0:00:00]} 55. gxf4+ {[%emt 0:00:00]} gxf4 {[%emt 0:00:00]} 56. Be8 {[%emt 0:00:00]} Bb2 {[%emt 0:00:00]} 57. Bb5 {[%emt 0:00:00]} fxe3 {[%emt 0:00:00]} 58. fxe3 {[%emt 0:00:00]} Kd5 {[%emt 0:00:00]} 59. Be8 {[%emt 0:00:00]} Ke5 {[%emt 0:00:00]} 60. Bb5 {[%emt 0:00:00]} 1/2-1/2

[Event "WJCC U20 Girls 2019"]
[Site "New Delhi"]
[Date "2019.10.21"]
[Round "7.19"]
[White "Aakanksha Hagawane"]
[Black "Dwilewicz, Katarzyna"]
[Result "1-0"]
[ECO "C88"]
[WhiteElo "2181"]
[BlackElo "2106"]
[Annotator "NA"]
[PlyCount "67"]
[EventDate "2019.10.15"]
[EventType "swiss"]
[EventCountry "IND"]
[SourceTitle "playchess.com"]
[Source "ChessBase"]
[SourceQuality "1"]
[TimeControl "40/5400+30:1800+30"]

1. e4 {[%emt 0:00:00]} e5 {[%emt 0:00:00]} 2. Nf3 {[%emt 0:00:00]} Nc6 {[%emt 0:00:00]} 3. Bb5 {[%emt 0:00:00]} a6 {[%emt 0:00:00]} 4. Ba4 {[%emt 0:00:12]} Nf6 {[%emt 0:00:11]} 5. O-O {[%emt 0:00:11]} Be7 {[%emt 0:00:35]} 6. Re1 {[%emt 0:00:25]} b5 {[%emt 0:00:10]} 7. Bb3 {[%emt 0:00:06]} O-O {[%emt 0:00:39]} 8. a4 {[%emt 0:01:29]} Na5 {[%emt 0:01:39]} 9. axb5 {[%emt 0:18:16]} Nxb3 {[%emt 0:01:06]} 10. cxb3 {[%emt 0:00:02]} Bb7 {[%emt 0:00:26]} 11. d3 {[%emt 0:01:29]} axb5 {[%emt 0:01:44]} 12. Rxa8 {[%emt 0:01:46]} Bxa8 {[%emt 0:00:04]} 13. Nxe5 {[%emt 0:05:26]} d5 {[%emt 0:00:06]} 14. Nc3 {[%emt 0:03:40]} dxe4 {[%emt 0:11:10]} 15. d4 {[%emt 0:06:33]} b4 {[%emt 0:08:59]} 16. Ne2 {[%emt 0:01:22]} Nd7 {[%emt 0:01:41]} 17. Nc4 {[%emt 0:01:40]} f5 {[%emt 0:05:05]} 18. Nf4 {[%emt 0:06:19]} Rf6 {[%emt 0:02:32]} 19. Nh5 {[%emt 0:18:52]} Rg6 {[%emt 0:01:36]} 20. Bf4 {[%emt 0:02:06]} Nb6 {[%emt 0:09:47]} 21. Ng3 {[%emt 0:09:36]} Nd5 {[%emt 0:10:06]} 22. Qd2 {[%emt 0:00:57]} Rg4 {[%emt 0:07:58]} 23. Be5 {[%emt 0:00:40]} Qf8 {[%emt 0:04:14]} 24. Ne3 {[%emt 0:03:13]} Nxe3 {[%emt 0:01:30]} 25. fxe3 {[%emt 0:02:19]} c5 {[%emt 0:08:59]} 26. Rf1 {[%emt 0:01:02]} cxd4 {[%emt 0:02:48]} 27. Nxf5 {[%emt 0:03:00]} d3 {[%emt 0:09:05]} 28. Qc1 {[%emt 0:02:06]} h5 {[%emt 0:07:05]} 29. Nh6+ {[%emt 0:05:27]} gxh6 {[%emt 0:00:03]} 30. Qc4+ {[%emt 0:00:06]} Kh7 {[%emt 0:00:33]} 31. Rf7+ {[%emt 0:00:33]} Kg6 {[%emt 0:03:43]} 32. Qe6+ {[%emt 0:00:05]} Kg5 {[%emt 0:00:08]} 33. Bf6+ {[%emt 0:00:10]} Kg6 {[%emt 0:00:17]} 34. Bxe7# {[%emt 0:00:06]} 1-0

[Event "WJCC U20 Girls 2019"]
[Site "New Delhi"]
[Date "2019.10.21"]
[Round "7.21"]
[White "Lakshmi C"]
[Black "Potapova, Margarita"]
[Result "1/2-1/2"]
[ECO "B11"]
[WhiteElo "1859"]
[BlackElo "2377"]
[Annotator "NA"]
[PlyCount "131"]
[EventDate "2019.10.15"]
[EventType "swiss"]
[EventCountry "IND"]
[SourceTitle "playchess.com"]
[Source "ChessBase"]
[SourceQuality "1"]
[TimeControl "40/5400+30:1800+30"]

1. e4 {[%emt 0:00:00]} c6 {[%emt 0:00:00]} 2. Nc3 {[%emt 0:00:00]} d5 {[%emt 0:00:00]} 3. Nf3 {[%emt 0:00:05]} Bg4 {[%emt 0:00:31]} 4. h3 {[%emt 0:00:08]} Bxf3 {[%emt 0:00:07]} 5. Qxf3 {[%emt 0:00:04]} e6 {[%emt 0:01:10]} 6. d4 {[%emt 0:00:56]} dxe4 {[%emt 0:03:24]} 7. Nxe4 {[%emt 0:05:11]} Qxd4 {[%emt 0:03:13]} 8. Bd3 {[%emt 0:00:31]} Be7 {[%emt 0:24:37]} 9. Be3 {[%emt 0:19:59]} Qd8 {[%emt 0:15:30]} 10. Qg3 {[%emt 0:12:02]} g6 {[%emt 0:07:16]} 11. O-O-O {[%emt 0:10:02]} Nd7 {[%emt 0:02:04]} 12. Bf4 $11 {[%emt 0:35:44]} Qa5 {[%emt 0:07:27]} 13. Bc4 {[%emt 0:00:55]} Ngf6 {[%emt 0:08:02]} 14. Nd6+ {[%emt 0:02:40]} Bxd6 {[%emt 0:01:04]} 15. Bxd6 {[%emt 0:01:59]} Ne4 {[%emt 0:02:15]} 16. Qh4 {[%emt 0:03:56]} Nxd6 17. Rxd6 {[%emt 0:00:03]} Qe5 {[%emt 0:12:17]} 18. Rhd1 {[%emt 0:00:54]} g5 {[%emt 0:02:38]} 19. Qh5 {[%emt 0:00:42]} Qf4+ {[%emt 0:01:32]} 20. Kb1 {[%emt 0:00:32]} O-O-O {[%emt 0:00:45]} 21. R1d4 {[%emt 0:03:01]} Qf6 {[%emt 0:03:50]} 22. h4 {[%emt 0:00:46]} h6 {[%emt 0:00:52]} 23. Qe2 {[%emt 0:00:46]} Nb6 {[%emt 0:01:54]} 24. Rxd8+ {[%emt 0:00:25]} Rxd8 {[%emt 0:00:07]} 25. Rxd8+ {[%emt 0:00:03]} Qxd8 {[%emt 0:00:17]} 26. hxg5 {[%emt 0:00:32]} Nxc4 {[%emt 0:01:36]} 27. gxh6 {[%emt 0:00:05]} Qh4 {[%emt 0:00:32]} 28. a3 {[%emt 0:00:17]} Nb6 {[%emt 0:02:01]} 29. Qe3 {[%emt 0:00:13]} Nd5 {[%emt 0:00:17]} 30. Qc1 {[%emt 0:01:35]} Ne7 {[%emt 0:00:52]} 31. g3 {[%emt 0:00:42]} Qh5 {[%emt 0:00:14]} 32. g4 {[%emt 0:00:41]} Qxg4 {[%emt 0:00:25]} 33. Qh1 {[%emt 0:00:01]} Ng6 {[%emt 0:00:32]} 34. h7 {[%emt 0:00:24]} Qd4 {[%emt 0:00:04]} 35. Qh6 {[%emt 0:00:56]} Qh8 {[%emt 0:00:09]} 36. Qh5 {[%emt 0:00:27]} Kb8 {[%emt 0:00:44]} 37. b4 {[%emt 0:00:36]} a6 {[%emt 0:01:16]} 38. Qh2+ {[%emt 0:00:29]} e5 {[%emt 0:00:17]} 39. Qh6 {[%emt 0:00:31]} Ka8 {[%emt 0:00:36]} 40. Qh5 {[%emt 0:00:26]} Ka7 {[%emt 0:01:04]} 41. a4 {[%emt 0:04:16]} Ka8 {[%emt 0:11:05]} 42. Qh3 {[%emt 0:04:47]} Kb8 {[%emt 0:05:46]} 43. Qd7 {[%emt 0:00:32]} Qf8 {[%emt 0:05:18]} 44. c3 {[%emt 0:01:32]} e4 {[%emt 0:03:27]} 45. Kb2 {[%emt 0:07:36]} Ka8 {[%emt 0:05:33]} 46. Kb3 {[%emt 0:07:58]} Kb8 {[%emt 0:01:45]} 47. Kb2 {[%emt 0:00:14]} Ka8 {[%emt 0:00:07]} 48. Kb3 {[%emt 0:00:02]} Ne5 {[%emt 0:00:23]} 49. Qf5 {[%emt 0:01:25]} Qh8 {[%emt 0:00:51]} 50. a5 {[%emt 0:01:52]} f6 {[%emt 0:00:42]} 51. Qxe4 {[%emt 0:02:07]} Kb8 {[%emt 0:00:29]} 52. f4 {[%emt 0:00:56]} Nd7 {[%emt 0:00:33]} 53. Qg6 {[%emt 0:00:41]} Nf8 {[%emt 0:00:20]} 54. Qg8 {[%emt 0:00:10]} Qxh7 {[%emt 0:00:04]} 55. Qxf8+ {[%emt 0:00:03]} Kc7 {[%emt 0:00:44]} 56. Qxf6 {[%emt 0:00:07]} Qb1+ {[%emt 0:00:16]} 57. Kc4 {[%emt 0:00:27]} Qe4+ {[%emt 0:00:29]} 58. Qd4 {[%emt 0:00:23]} Qe2+ {[%emt 0:00:31]} 59. Qd3 {[%emt 0:00:35]} Qe6+ {[%emt 0:00:30]} 60. Kd4 {[%emt 0:00:23]} Qd7+ {[%emt 0:01:04]} 61. Ke3 {[%emt 0:02:26]} Qh3+ {[%emt 0:00:04]} 62. Ke2 {[%emt 0:01:09]} Qh2+ {[%emt 0:00:10]} 63. Ke3 {[%emt 0:00:23]} Qh3+ {[%emt 0:00:12]} 64. Kd4 {[%emt 0:00:49]} Qd7+ {[%emt 0:00:16]} 65. Ke3 {[%emt 0:00:50]} Qh3+ {[%emt 0:00:21]} 66. Ke4 1/2-1/2

[Event "WJCC U20 Girls 2019"]
[Site "New Delhi"]
[Date "2019.10.21"]
[Round "7.22"]
[White "Yakubbaeva, Nilufar"]
[Black "Zhang, Xiao"]
[Result "1-0"]
[ECO "B12"]
[WhiteElo "2281"]
[BlackElo "2053"]
[Annotator "NA"]
[PlyCount "55"]
[EventDate "2019.10.15"]
[EventType "swiss"]
[EventCountry "IND"]
[SourceTitle "playchess.com"]
[Source "ChessBase"]
[SourceQuality "1"]
[TimeControl "40/5400+30:1800+30"]

1. e4 {[%emt 0:00:00]} c6 {[%emt 0:00:00]} 2. d4 {[%emt 0:00:00]} d5 {[%emt 0:00:00]} 3. e5 {[%emt 0:00:02]} c5 {[%emt 0:01:40]} 4. dxc5 {[%emt 0:00:12]} e6 {[%emt 0:00:03]} 5. Qg4 {[%emt 0:00:34]} Nd7 {[%emt 0:03:34]} 6. Nf3 {[%emt 0:03:20]} Qc7 {[%emt 0:02:38]} 7. Be3 {[%emt 0:07:49]} Ne7 {[%emt 0:02:33]} 8. Nc3 {[%emt 0:03:12]} a6 {[%emt 0:01:37]} 9. Bd3 {[%emt 0:07:04]} Ng6 {[%emt 0:14:29]} 10. Bxg6 {[%emt 0:08:59]} hxg6 {[%emt 0:00:21]} 11. Qa4 {[%emt 0:08:16]} Bxc5 {[%emt 0:20:21]} 12. Bxc5 {[%emt 0:06:28]} Qxc5 {[%emt 0:00:07]} 13. O-O {[%emt 0:03:43]} b5 {[%emt 0:09:53]} 14. Qf4 {[%emt 0:06:19]} Bb7 {[%emt 0:00:14]} 15. Rfe1 {[%emt 0:04:51]} Qe7 {[%emt 0:05:16]} 16. Rad1 {[%emt 0:04:28]} Rc8 {[%emt 0:01:08]} 17. Rd4 {[%emt 0:04:14]} Nb8 {[%emt 0:04:31]} 18. Ng5 {[%emt 0:11:28]} Nc6 {[%emt 0:03:13]} 19. Rxd5 {[%emt 0:05:22]} exd5 {[%emt 0:23:35]} 20. Nxd5 {[%emt 0:00:04]} Qf8 {[%emt 0:00:46]} 21. e6 {[%emt 0:00:45]} f5 {[%emt 0:01:36]} 22. Nf7 {[%emt 0:03:31]} Ne5 {[%emt 0:02:44]} 23. Qxe5 {[%emt 0:00:48]} Bxd5 {[%emt 0:00:23]} 24. Qxd5 {[%emt 0:00:34]} Ke7 {[%emt 0:00:45]} 25. Nxh8 {[%emt 0:02:06]} Qxh8 {[%emt 0:00:11]} 26. Qd7+ {[%emt 0:00:18]} Kf6 {[%emt 0:00:04]} 27. e7 {[%emt 0:00:23]} Qe8 {[%emt 0:01:02]} 28. Qxc8 {[%emt 0:00:16]} 1-0

[Event "WJCC U20 Girls 2019"]
[Site "New Delhi"]
[Date "2019.10.21"]
[Round "7.24"]
[White "Bakshi, Rutuja"]
[Black "Pychova, Nela"]
[Result "1/2-1/2"]
[ECO "E11"]
[WhiteElo "2029"]
[BlackElo "2178"]
[Annotator "NA"]
[PlyCount "73"]
[EventDate "2019.10.15"]
[EventType "swiss"]
[EventCountry "IND"]
[SourceTitle "playchess.com"]
[Source "ChessBase"]
[SourceQuality "1"]
[TimeControl "40/5400+30:1800+30"]

1. Nf3 {[%emt 0:00:00]} Nf6 {[%emt 0:00:00]} 2. c4 {[%emt 0:00:10]} e6 {[%emt 0:08:02]} 3. d4 {[%emt 0:00:26]} Bb4+ {[%emt 0:01:06]} 4. Bd2 {[%emt 0:00:07]} a5 {[%emt 0:02:01]} 5. a3 {[%emt 0:01:42]} Bxd2+ {[%emt 0:01:35]} 6. Qxd2 {[%emt 0:05:02]} d6 {[%emt 0:12:39]} 7. Nc3 {[%emt 0:03:22]} O-O {[%emt 0:04:51]} 8. g3 {[%emt 0:02:49]} Qe7 {[%emt 0:02:58]} 9. Bg2 {[%emt 0:02:33]} e5 {[%emt 0:06:48]} 10. O-O {[%emt 0:03:58]} Re8 {[%emt 0:05:50]} 11. e4 Bg4 {[%emt 0:04:02]} 12. d5 {[%emt 0:08:29]} Na6 {[%emt 0:14:52]} 13. h3 {[%emt 0:01:35]} Bxf3 {[%emt 0:04:00]} 14. Bxf3 {[%emt 0:00:02]} Nc5 15. Rae1 {[%emt 0:07:25]} Nb3 {[%emt 0:06:09]} 16. Qe3 {[%emt 0:08:48]} Nd4 {[%emt 0:03:43]} 17. Bd1 {[%emt 0:01:49]} Nd7 {[%emt 0:01:45]} 18. Ne2 {[%emt 0:02:52]} Nxe2+ {[%emt 0:00:52]} 19. Rxe2 {[%emt 0:02:04]} a4 {[%emt 0:03:10]} 20. Bc2 {[%emt 0:04:38]} Nc5 {[%emt 0:02:32]} 21. f4 {[%emt 0:01:19]} Rab8 {[%emt 0:04:32]} 22. f5 {[%emt 0:04:07]} f6 {[%emt 0:01:11]} 23. Rg2 {[%emt 0:03:16]} b5 {[%emt 0:02:40]} 24. cxb5 {[%emt 0:01:26]} Rxb5 {[%emt 0:00:02]} 25. Bd1 {[%emt 0:00:32]} Reb8 {[%emt 0:00:18]} 26. Rff2 {[%emt 0:00:32]} R5b6 {[%emt 0:02:18]} 27. g4 {[%emt 0:02:08]} Kh8 {[%emt 0:00:23]} 28. h4 {[%emt 0:01:40]} Rf8 {[%emt 0:04:11]} 29. g5 {[%emt 0:00:27]} Qd7 {[%emt 0:00:55]} 30. Rg4 {[%emt 0:08:41]} Rbb8 {[%emt 0:00:56]} 31. Rfg2 {[%emt 0:00:44]} Rg8 {[%emt 0:00:28]} 32. Qg3 {[%emt 0:02:03]} Rbf8 {[%emt 0:00:20]} 33. Kh2 {[%emt 0:01:27]} Qe7 {[%emt 0:00:15]} 34. Qe3 {[%emt 0:02:14]} Rb8 {[%emt 0:00:13]} 35. Qg3 {[%emt 0:05:54]} Rbe8 {[%emt 0:00:17]} 36. Qe3 {[%emt 0:03:09]} Rb8 {[%emt 0:00:19]} 37. Qg3 {[%emt 0:00:53]} 1/2-1/2